[Event "Titled Tuesday Blitz February 07 Early 2023"]
[White "Wagh Suyog"]
[Black "Paravyan, David"]
[WhiteFideId "25071688"]
[BlackFideId "4194985"]
[WhiteElo "2313"]
[BlackElo "2601"]
[Result "1-0"]
[Round "04"]
[TimeControl "180+2"]
[Date "2023.02.07"]
[WhiteClock "0:00:07"]
[BlackClock "0:00:03"]

1. d4 {[%clk 0:02:55]}  Nf6 {[%clk 0:02:59]} 2. c4 {[%clk 0:02:54]}  g6 {[%clk 0:02:59]} 3. g3 {[%clk 0:02:55]}  c6 {[%clk 0:02:58]} 4. Bg2 {[%clk 0:02:55]}  d5 {[%clk 0:02:59]} 5. cxd5 {[%clk 0:02:55]}  cxd5 {[%clk 0:03:00]} 6. Nf3 {[%clk 0:02:56]}  Bg7 {[%clk 0:03:00]} 7. Nc3 {[%clk 0:02:56]}  Ne4 {[%clk 0:02:58]} 8. O-O {[%clk 0:02:56]}  O-O {[%clk 0:02:57]} 9. Ng5 {[%clk 0:02:56]}  f5 {[%clk 0:02:12]} 10. Qb3 {[%clk 0:02:53]}  e6 {[%clk 0:02:12]} 11. Nf3 {[%clk 0:02:40]}  Nc6 {[%clk 0:02:11]} 12. Rd1 {[%clk 0:02:40]}  b6 {[%clk 0:01:53]} 13. Bf4 {[%clk 0:02:39]}  Bb7 {[%clk 0:01:25]} 14. h4 {[%clk 0:02:37]}  Qe7 {[%clk 0:01:18]} 15. Ne5 {[%clk 0:02:34]}  Nxe5 {[%clk 0:01:16]} 16. Bxe5 {[%clk 0:02:33]}  Bxe5 {[%clk 0:01:15]} 17. dxe5 {[%clk 0:02:34]}  Rac8 {[%clk 0:01:08]} 18. Rac1 {[%clk 0:02:33]}  Rc5 {[%clk 0:00:47]} 19. Qa3 {[%clk 0:02:30]}  Re8 {[%clk 0:00:31]} 20. Nxe4 {[%clk 0:02:17]}  fxe4 {[%clk 0:00:31]} 21. Qxa7 {[%clk 0:02:16]}  Qc7 {[%clk 0:00:30]} 22. Rxc5 {[%clk 0:02:11]}  bxc5 {[%clk 0:00:31]} 23. Rc1 {[%clk 0:02:08]}  c4 {[%clk 0:00:27]} 24. Qd4 {[%clk 0:02:06]}  Qa5 {[%clk 0:00:25]} 25. b3 {[%clk 0:02:00]}  Ba6 {[%clk 0:00:23]} 26. bxc4 {[%clk 0:01:44]}  Bxc4 {[%clk 0:00:24]} 27. Bxe4 {[%clk 0:01:44]}  Bxe2 {[%clk 0:00:14]} 28. Bb1 {[%clk 0:01:36]}  Bc4 {[%clk 0:00:13]} 29. h5 {[%clk 0:01:35]}  gxh5 {[%clk 0:00:13]} 30. Qf4 {[%clk 0:01:33]}  Qd8 {[%clk 0:00:10]} 31. Qh6 {[%clk 0:01:23]}  Qe7 {[%clk 0:00:10]} 32. Qxh5 {[%clk 0:01:23]}  Rf8 {[%clk 0:00:10]} 33. Rd1 {[%clk 0:01:17]}  Qf7 {[%clk 0:00:09]} 34. Qg5+ {[%clk 0:01:12]}  Kh8 {[%clk 0:00:09]} 35. Qe3 {[%clk 0:01:11]}  Qh5 {[%clk 0:00:08]} 36. Re1 {[%clk 0:01:00]}  Rf3 {[%clk 0:00:04]} 37. Qd4 {[%clk 0:00:41]}  Qh3 {[%clk 0:00:03]} 38. Qd2 {[%clk 0:00:17]}  h6 {[%clk 0:00:02]} 39. Bc2 {[%clk 0:00:14]}  Kg7 {[%clk 0:00:02]} 40. Bd1 {[%clk 0:00:14]}  Rf5 {[%clk 0:00:02]} 41. Qd4 {[%clk 0:00:12]}  Rg5 {[%clk 0:00:02]} 42. Qf4 {[%clk 0:00:08]}  Rf5 {[%clk 0:00:02]} 43. Qe3 {[%clk 0:00:08]}  Rg5 {[%clk 0:00:03]} 44. a4 {[%clk 0:00:07]}  h5 {[%clk 0:00:03]} 45. Qxg5+ {[%clk 0:00:06]}  Kf8 {[%clk 0:00:03]} 46. Qxh5 {[%clk 0:00:07]} 1-0


[Site "https://www.chess.com"]

[Event "Titled Tuesday Blitz February 07 Early 2023"]
[White "Sychev, Klementy"]
[Black "Rozman, Levy"]
[WhiteFideId "4114060"]
[BlackFideId "2039877"]
[WhiteElo "2547"]
[BlackElo "2322"]
[Result "1-0"]
[Round "04"]
[TimeControl "180+2"]
[Date "2023.02.07"]
[WhiteClock "0:02:40"]
[BlackClock "0:02:53"]

1. e4 {[%clk 0:03:00]}  e6 {[%clk 0:02:59]} 2. d4 {[%clk 0:03:00]}  d5 {[%clk 0:02:59]} 3. Nc3 {[%clk 0:02:59]}  dxe4 {[%clk 0:03:00]} 4. Nxe4 {[%clk 0:02:59]}  Nf6 {[%clk 0:03:01]} 5. Nxf6+ {[%clk 0:02:59]}  gxf6 {[%clk 0:03:02]} 6. Nf3 {[%clk 0:02:58]}  Nc6 {[%clk 0:03:03]} 7. Be3 {[%clk 0:02:54]}  b6 {[%clk 0:03:03]} 8. g3 {[%clk 0:02:54]}  Bb7 {[%clk 0:03:02]} 9. Bg2 {[%clk 0:02:55]}  Qd7 {[%clk 0:03:02]} 10. O-O {[%clk 0:02:55]}  O-O-O {[%clk 0:03:03]} 11. c4 {[%clk 0:02:55]}  h5 {[%clk 0:03:02]} 12. Nh4 {[%clk 0:02:48]}  Nxd4 {[%clk 0:02:57]} 13. Bxb7+ {[%clk 0:02:47]}  Kxb7 {[%clk 0:02:56]} 14. Bxd4 {[%clk 0:02:41]}  Qxd4 {[%clk 0:02:53]} 15. Qf3+ {[%clk 0:02:40]} 1-0


[Site "https://www.chess.com"]

[Event "Titled Tuesday Blitz February 07 Early 2023"]
[White "Urazayev, Arystanbek"]
[Black "Darini, Pouria"]
[WhiteFideId "13709810"]
[BlackFideId "12502200"]
[WhiteElo "2460"]
[BlackElo "2401"]
[Result "1-0"]
[Round "04"]
[TimeControl "180+2"]
[Date "2023.02.07"]
[WhiteClock "0:00:16"]
[BlackClock "0:00:02"]

1. e4 {[%clk 0:03:00]}  e5 {[%clk 0:02:59]} 2. Nf3 {[%clk 0:03:00]}  Nc6 {[%clk 0:02:59]} 3. Nc3 {[%clk 0:03:00]}  Bb4 {[%clk 0:02:53]} 4. Nd5 {[%clk 0:02:59]}  Bd6 {[%clk 0:02:42]} 5. Bc4 {[%clk 0:02:54]}  Nf6 {[%clk 0:02:41]} 6. d3 {[%clk 0:02:53]}  Nxd5 {[%clk 0:02:41]} 7. Bxd5 {[%clk 0:02:53]}  Ne7 {[%clk 0:02:42]} 8. Bb3 {[%clk 0:02:53]}  h6 {[%clk 0:02:36]} 9. O-O {[%clk 0:02:42]}  Ng6 {[%clk 0:02:36]} 10. d4 {[%clk 0:02:31]}  O-O {[%clk 0:02:18]} 11. dxe5 {[%clk 0:02:30]}  Nxe5 {[%clk 0:02:18]} 12. Nxe5 {[%clk 0:02:31]}  Bxe5 {[%clk 0:02:19]} 13. f4 {[%clk 0:02:32]}  Bd6 {[%clk 0:02:20]} 14. Be3 {[%clk 0:02:30]}  Qe7 {[%clk 0:02:20]} 15. Qd4 {[%clk 0:02:18]}  b6 {[%clk 0:02:19]} 16. Rae1 {[%clk 0:02:00]}  Bb7 {[%clk 0:01:31]} 17. e5 {[%clk 0:01:55]}  Bc5 {[%clk 0:01:32]} 18. Qd2 {[%clk 0:01:55]}  Rfe8 {[%clk 0:01:02]} 19. c3 {[%clk 0:01:49]}  Be4 {[%clk 0:00:47]} 20. Bxc5 {[%clk 0:01:28]}  Qxc5+ {[%clk 0:00:46]} 21. Qd4 {[%clk 0:01:28]}  d5 {[%clk 0:00:33]} 22. Qxc5 {[%clk 0:01:16]}  bxc5 {[%clk 0:00:33]} 23. c4 {[%clk 0:01:00]}  c6 {[%clk 0:00:23]} 24. Rc1 {[%clk 0:00:59]}  d4 {[%clk 0:00:21]} 25. Rfe1 {[%clk 0:00:59]}  Bf5 {[%clk 0:00:21]} 26. Ba4 {[%clk 0:00:56]}  Rec8 {[%clk 0:00:12]} 27. Rcd1 {[%clk 0:00:55]}  Rab8 {[%clk 0:00:12]} 28. b3 {[%clk 0:00:55]}  Rb4 {[%clk 0:00:12]} 29. Rd2 {[%clk 0:00:50]}  Rxa4 {[%clk 0:00:12]} 30. bxa4 {[%clk 0:00:50]}  Rb8 {[%clk 0:00:13]} 31. h3 {[%clk 0:00:46]}  Rb4 {[%clk 0:00:13]} 32. g4 {[%clk 0:00:46]}  Be6 {[%clk 0:00:12]} 33. f5 {[%clk 0:00:45]}  Bxc4 {[%clk 0:00:13]} 34. e6 {[%clk 0:00:46]}  Kf8 {[%clk 0:00:04]} 35. Rc2 {[%clk 0:00:23]}  fxe6 {[%clk 0:00:03]} 36. fxe6 {[%clk 0:00:23]}  Ke7 {[%clk 0:00:04]} 37. Re5 {[%clk 0:00:23]}  Bd5 {[%clk 0:00:04]} 38. Rxc5 {[%clk 0:00:22]}  d3 {[%clk 0:00:05]} 39. Rc1 {[%clk 0:00:21]}  Rxa4 {[%clk 0:00:03]} 40. Rd1 {[%clk 0:00:21]}  Rd4 {[%clk 0:00:03]} 41. Re3 {[%clk 0:00:20]}  Bc4 {[%clk 0:00:03]} 42. Kf2 {[%clk 0:00:20]}  c5 {[%clk 0:00:04]} 43. Ke1 {[%clk 0:00:19]}  Bb5 {[%clk 0:00:04]} 44. Kd2 {[%clk 0:00:19]}  c4 {[%clk 0:00:05]} 45. Kc3 {[%clk 0:00:18]}  Rd6 {[%clk 0:00:06]} 46. a4 {[%clk 0:00:16]}  Bxa4 {[%clk 0:00:06]} 47. Ra1 {[%clk 0:00:16]}  Bb3 {[%clk 0:00:01]} 48. Rxa7+ {[%clk 0:00:16]}  Ke8 {[%clk 0:00:02]} 49. e7 {[%clk 0:00:16]}  Ra6 {[%clk 0:00:02]} 50. Rxa6 {[%clk 0:00:16]} 1-0


[Site "https://www.chess.com"]

[Event "Titled Tuesday Blitz February 07 Early 2023"]
[White "Koellner, Ruben Gideon"]
[Black "Samunenkov, Ihor"]
[WhiteFideId "12993093"]
[BlackFideId "14187086"]
[WhiteElo "2426"]
[BlackElo "2501"]
[Result "0-1"]
[Round "04"]
[TimeControl "180+2"]
[Date "2023.02.07"]
[WhiteClock "0:00:15"]
[BlackClock "0:00:58"]

1. d4 {[%clk 0:02:55]}  d5 {[%clk 0:02:59]} 2. Nf3 {[%clk 0:02:55]}  e6 {[%clk 0:02:59]} 3. e3 {[%clk 0:02:53]}  Nf6 {[%clk 0:02:58]} 4. Nbd2 {[%clk 0:02:53]}  c5 {[%clk 0:02:54]} 5. c3 {[%clk 0:02:52]}  Nbd7 {[%clk 0:02:34]} 6. Bd3 {[%clk 0:02:50]}  Bd6 {[%clk 0:02:35]} 7. O-O {[%clk 0:02:50]}  O-O {[%clk 0:02:35]} 8. Qe2 {[%clk 0:02:50]}  e5 {[%clk 0:02:27]} 9. dxe5 {[%clk 0:02:44]}  Nxe5 {[%clk 0:02:28]} 10. Nxe5 {[%clk 0:02:40]}  Bxe5 {[%clk 0:02:29]} 11. e4 {[%clk 0:02:41]}  Re8 {[%clk 0:01:47]} 12. f4 {[%clk 0:01:50]}  dxe4 {[%clk 0:01:45]} 13. Nxe4 {[%clk 0:01:47]}  Bg4 {[%clk 0:01:44]} 14. Qc2 {[%clk 0:01:27]}  Bc7 {[%clk 0:01:20]} 15. h3 {[%clk 0:01:14]}  c4 {[%clk 0:01:01]} 16. Nxf6+ {[%clk 0:01:13]}  Qxf6 {[%clk 0:01:02]} 17. Bxh7+ {[%clk 0:01:12]}  Kh8 {[%clk 0:01:03]} 18. hxg4 {[%clk 0:01:03]}  Bb6+ {[%clk 0:01:01]} 19. Be3 {[%clk 0:00:21]}  Bxe3+ {[%clk 0:01:00]} 20. Rf2 {[%clk 0:00:21]}  g6 {[%clk 0:01:01]} 21. g3 {[%clk 0:00:14]}  Kxh7 {[%clk 0:01:00]} 22. Kg2 {[%clk 0:00:14]}  Bxf2 {[%clk 0:00:58]} 23. Qxf2 {[%clk 0:00:15]}  Qc6+ {[%clk 0:00:58]} 0-1


[Site "https://www.chess.com"]

[Event "Titled Tuesday Blitz February 07 Early 2023"]
[White "Shuvalova, Polina"]
[Black "Gokerkan, Cem Kaan"]
[WhiteFideId "24171760"]
[BlackFideId "6336760"]
[WhiteElo "2484"]
[BlackElo "2500"]
[Result "0-1"]
[Round "04"]
[TimeControl "180+2"]
[Date "2023.02.07"]
[WhiteClock "0:00:02"]
[BlackClock "0:00:06"]

1. e4 {[%clk 0:03:00]}  c5 {[%clk 0:02:54]} 2. Nf3 {[%clk 0:03:00]}  g6 {[%clk 0:02:55]} 3. c3 {[%clk 0:02:59]}  Bg7 {[%clk 0:02:48]} 4. d4 {[%clk 0:02:59]}  cxd4 {[%clk 0:02:49]} 5. cxd4 {[%clk 0:02:59]}  d5 {[%clk 0:02:50]} 6. e5 {[%clk 0:02:59]}  Bg4 {[%clk 0:02:49]} 7. Be3 {[%clk 0:02:55]}  Nc6 {[%clk 0:02:48]} 8. Nbd2 {[%clk 0:02:50]}  e6 {[%clk 0:02:48]} 9. h3 {[%clk 0:02:46]}  Bxf3 {[%clk 0:02:48]} 10. Nxf3 {[%clk 0:02:46]}  Nge7 {[%clk 0:02:49]} 11. Bd3 {[%clk 0:02:43]}  O-O {[%clk 0:02:49]} 12. O-O {[%clk 0:02:42]}  Qb6 {[%clk 0:02:38]} 13. Qe2 {[%clk 0:02:38]}  Nb4 {[%clk 0:02:34]} 14. Bb1 {[%clk 0:02:33]}  Rac8 {[%clk 0:02:33]} 15. a3 {[%clk 0:02:32]}  Nbc6 {[%clk 0:02:33]} 16. b4 {[%clk 0:02:27]}  Rfe8 {[%clk 0:01:21]} 17. Bd3 {[%clk 0:02:21]}  f6 {[%clk 0:01:10]} 18. b5 {[%clk 0:01:57]}  Na5 {[%clk 0:01:10]} 19. exf6 {[%clk 0:01:57]}  Bxf6 {[%clk 0:01:11]} 20. Ne5 {[%clk 0:01:41]}  Nf5 {[%clk 0:01:00]} 21. Nd7 {[%clk 0:01:32]}  Qd8 {[%clk 0:01:00]} 22. Nxf6+ {[%clk 0:01:32]}  Qxf6 {[%clk 0:01:01]} 23. Qg4 {[%clk 0:01:13]}  Nc4 {[%clk 0:00:56]} 24. a4 {[%clk 0:01:06]}  Qg7 {[%clk 0:00:40]} 25. Rae1 {[%clk 0:00:50]}  Nb2 {[%clk 0:00:23]} 26. Bb1 {[%clk 0:00:32]}  Nxa4 {[%clk 0:00:23]} 27. Bf4 {[%clk 0:00:26]}  Qxd4 {[%clk 0:00:20]} 28. Qg5 {[%clk 0:00:25]}  Nc3 {[%clk 0:00:15]} 29. Be5 {[%clk 0:00:24]}  Qh4 {[%clk 0:00:16]} 30. Qxh4 {[%clk 0:00:17]}  Nxh4 {[%clk 0:00:17]} 31. Bd3 {[%clk 0:00:12]}  Nf5 {[%clk 0:00:15]} 32. Rc1 {[%clk 0:00:12]}  Ne4 {[%clk 0:00:12]} 33. Bxe4 {[%clk 0:00:08]}  dxe4 {[%clk 0:00:12]} 34. Ra1 {[%clk 0:00:09]}  Rc5 {[%clk 0:00:11]} 35. Bf4 {[%clk 0:00:08]}  e5 {[%clk 0:00:10]} 36. Be3 {[%clk 0:00:04]}  Rxb5 {[%clk 0:00:09]} 37. Rxa7 {[%clk 0:00:04]}  h5 {[%clk 0:00:07]} 38. Re1 {[%clk 0:00:04]}  Kf7 {[%clk 0:00:07]} 39. Bg5 {[%clk 0:00:04]}  Nd6 {[%clk 0:00:06]} 40. Rd1 {[%clk 0:00:03]}  Ke6 {[%clk 0:00:06]} 41. g4 {[%clk 0:00:02]}  hxg4 {[%clk 0:00:06]} 42. hxg4 {[%clk 0:00:03]}  Rd5 {[%clk 0:00:06]} 43. Rb1 {[%clk 0:00:02]}  Rc8 {[%clk 0:00:04]} 44. Kg2 {[%clk 0:00:02]}  Rc2 {[%clk 0:00:04]} 45. Be3 {[%clk 0:00:03]}  Rc6 {[%clk 0:00:04]} 46. Rb6 {[%clk 0:00:02]}  Rxb6 {[%clk 0:00:04]} 47. Bxb6 {[%clk 0:00:03]}  Rb5 {[%clk 0:00:04]} 48. Be3 {[%clk 0:00:03]}  Nc4 {[%clk 0:00:04]} 49. Bg5 {[%clk 0:00:02]}  Rb2 {[%clk 0:00:04]} 50. Kg3 {[%clk 0:00:03]}  Rb3+ {[%clk 0:00:04]} 51. Kg2 {[%clk 0:00:03]}  Kd5 {[%clk 0:00:04]} 52. Ra8 {[%clk 0:00:04]}  Rb2 {[%clk 0:00:04]} 53. Rd8+ {[%clk 0:00:04]}  Kc5 {[%clk 0:00:05]} 54. Kg3 {[%clk 0:00:05]}  Rb3+ {[%clk 0:00:05]} 55. Kg2 {[%clk 0:00:05]}  b5 {[%clk 0:00:06]} 56. Rc8+ {[%clk 0:00:06]}  Kd4 {[%clk 0:00:06]} 57. Rd8+ {[%clk 0:00:06]}  Kc3 {[%clk 0:00:07]} 58. Rg8 {[%clk 0:00:05]}  Rb2 {[%clk 0:00:08]} 59. Kg3 {[%clk 0:00:06]}  b4 {[%clk 0:00:08]} 60. Rxg6 {[%clk 0:00:06]}  b3 {[%clk 0:00:08]} 61. Rc6 {[%clk 0:00:05]}  Rb1 {[%clk 0:00:08]} 62. Bf6 {[%clk 0:00:06]}  Kd4 {[%clk 0:00:08]} 63. g5 {[%clk 0:00:06]}  b2 {[%clk 0:00:08]} 64. Kg2 {[%clk 0:00:03]}  Rc1 {[%clk 0:00:06]} 65. g6 {[%clk 0:00:03]}  b1=Q {[%clk 0:00:07]} 66. g7 {[%clk 0:00:02]}  Rg1+ {[%clk 0:00:07]} 67. Kh2 {[%clk 0:00:02]}  Qf1 {[%clk 0:00:06]} 68. Rxc4+ {[%clk 0:00:02]}  Kxc4 {[%clk 0:00:06]} 69. g8=Q+ {[%clk 0:00:02]}  Rxg8 {[%clk 0:00:06]} 0-1


[Site "https://www.chess.com"]

[Event "Titled Tuesday Blitz February 07 Early 2023"]
[White "Iskusnyh, Sergei"]
[Black "Yuan, Qingyu"]
[WhiteFideId "4120027"]
[BlackFideId "8609772"]
[WhiteElo "2440"]
[BlackElo "2373"]
[Result "0-1"]
[Round "04"]
[TimeControl "180+2"]
[Date "2023.02.07"]
[WhiteClock "0:00:01"]
[BlackClock "0:00:02"]

1. d4 {[%clk 0:03:00]}  d5 {[%clk 0:02:59]} 2. c4 {[%clk 0:03:00]}  e6 {[%clk 0:03:00]} 3. Nf3 {[%clk 0:02:59]}  Nf6 {[%clk 0:03:00]} 4. g3 {[%clk 0:02:55]}  Bb4+ {[%clk 0:03:00]} 5. Bd2 {[%clk 0:02:54]}  Be7 {[%clk 0:02:59]} 6. Bg2 {[%clk 0:02:54]}  O-O {[%clk 0:03:00]} 7. O-O {[%clk 0:02:54]}  Nbd7 {[%clk 0:03:00]} 8. Qc2 {[%clk 0:02:54]}  c6 {[%clk 0:03:01]} 9. a3 {[%clk 0:02:54]}  b6 {[%clk 0:02:58]} 10. cxd5 {[%clk 0:02:54]}  cxd5 {[%clk 0:02:55]} 11. Bb4 {[%clk 0:02:54]}  Ba6 {[%clk 0:02:45]} 12. Nc3 {[%clk 0:02:46]}  Bb7 {[%clk 0:02:10]} 13. Rfc1 {[%clk 0:02:40]}  a5 {[%clk 0:01:40]} 14. Bxe7 {[%clk 0:02:38]}  Qxe7 {[%clk 0:01:41]} 15. e3 {[%clk 0:02:21]}  Rfc8 {[%clk 0:01:32]} 16. Qb3 {[%clk 0:02:09]}  Ba6 {[%clk 0:01:26]} 17. Bf1 {[%clk 0:01:46]}  Bxf1 {[%clk 0:01:21]} 18. Kxf1 {[%clk 0:01:47]}  h6 {[%clk 0:01:11]} 19. Kg2 {[%clk 0:01:46]}  Rab8 {[%clk 0:00:54]} 20. Nb5 {[%clk 0:01:41]}  Ne4 {[%clk 0:00:41]} 21. Na7 {[%clk 0:01:23]}  Rxc1 {[%clk 0:00:38]} 22. Rxc1 {[%clk 0:01:23]}  Ra8 {[%clk 0:00:23]} 23. Nb5 {[%clk 0:01:18]}  Qd8 {[%clk 0:00:17]} 24. Qc2 {[%clk 0:01:14]}  Ndf6 {[%clk 0:00:16]} 25. Ne5 {[%clk 0:01:13]}  Ne8 {[%clk 0:00:14]} 26. Qc6 {[%clk 0:01:08]}  Rb8 {[%clk 0:00:07]} 27. Rc2 {[%clk 0:00:57]}  N4d6 {[%clk 0:00:06]} 28. Nxd6 {[%clk 0:00:52]}  Nxd6 {[%clk 0:00:06]} 29. Qc7 {[%clk 0:00:34]}  Rc8 {[%clk 0:00:04]} 30. Qxd8+ {[%clk 0:00:34]}  Rxd8 {[%clk 0:00:04]} 31. Rc6 {[%clk 0:00:34]}  b5 {[%clk 0:00:03]} 32. Rc5 {[%clk 0:00:32]}  Nc4 {[%clk 0:00:02]} 33. Rxb5 {[%clk 0:00:31]}  Nxe5 {[%clk 0:00:02]} 34. dxe5 {[%clk 0:00:30]}  Ra8 {[%clk 0:00:02]} 35. a4 {[%clk 0:00:30]}  g5 {[%clk 0:00:02]} 36. g4 {[%clk 0:00:26]}  Kg7 {[%clk 0:00:03]} 37. Kf1 {[%clk 0:00:25]}  Kg6 {[%clk 0:00:02]} 38. Ke2 {[%clk 0:00:25]}  h5 {[%clk 0:00:03]} 39. h3 {[%clk 0:00:25]}  hxg4 {[%clk 0:00:03]} 40. hxg4 {[%clk 0:00:25]}  f6 {[%clk 0:00:04]} 41. exf6 {[%clk 0:00:23]}  Kxf6 {[%clk 0:00:05]} 42. Kd3 {[%clk 0:00:24]}  Ke5 {[%clk 0:00:05]} 43. b3 {[%clk 0:00:20]}  Ra7 {[%clk 0:00:03]} 44. Rb6 {[%clk 0:00:16]}  Ra8 {[%clk 0:00:03]} 45. Rb7 {[%clk 0:00:14]}  Rf8 {[%clk 0:00:02]} 46. Ke2 {[%clk 0:00:14]}  Rh8 {[%clk 0:00:02]} 47. Ra7 {[%clk 0:00:13]}  Rb8 {[%clk 0:00:02]} 48. Rxa5 {[%clk 0:00:12]}  Rxb3 {[%clk 0:00:03]} 49. Ra8 {[%clk 0:00:12]}  Ra3 {[%clk 0:00:02]} 50. a5 {[%clk 0:00:12]}  Ke4 {[%clk 0:00:02]} 51. a6 {[%clk 0:00:11]}  Ra2+ {[%clk 0:00:02]} 52. Kf1 {[%clk 0:00:11]}  e5 {[%clk 0:00:02]} 53. a7 {[%clk 0:00:10]}  Ra1+ {[%clk 0:00:02]} 54. Kg2 {[%clk 0:00:10]}  Ra2 {[%clk 0:00:02]} 55. Kg3 {[%clk 0:00:09]}  Ra1 {[%clk 0:00:02]} 56. f3+ {[%clk 0:00:05]}  Kxe3 {[%clk 0:00:02]} 57. Re8 {[%clk 0:00:06]}  Rxa7 {[%clk 0:00:02]} 58. Rxe5+ {[%clk 0:00:07]}  Kd4 {[%clk 0:00:02]} 59. Rxg5 {[%clk 0:00:07]}  Kc4 {[%clk 0:00:02]} 60. Rg8 {[%clk 0:00:07]}  d4 {[%clk 0:00:02]} 61. Rc8+ {[%clk 0:00:06]}  Kb3 {[%clk 0:00:03]} 62. Rd8 {[%clk 0:00:06]}  Kc3 {[%clk 0:00:03]} 63. g5 {[%clk 0:00:06]}  d3 {[%clk 0:00:03]} 64. f4 {[%clk 0:00:06]}  d2 {[%clk 0:00:03]} 65. Kg4 {[%clk 0:00:05]}  Ra6 {[%clk 0:00:02]} 66. Kh5 {[%clk 0:00:04]}  Ra4 {[%clk 0:00:01]} 67. Rxd2 {[%clk 0:00:02]}  Kxd2 {[%clk 0:00:02]} 68. f5 {[%clk 0:00:03]}  Ke3 {[%clk 0:00:03]} 69. f6 {[%clk 0:00:03]}  Kf4 {[%clk 0:00:02]} 70. g6 {[%clk 0:00:03]}  Kf5 {[%clk 0:00:02]} 71. f7 {[%clk 0:00:02]}  Ra8 {[%clk 0:00:02]} 72. g7 {[%clk 0:00:03]}  Ra5 {[%clk 0:00:02]} 73. Kh4 {[%clk 0:00:01]}  Ra4+ {[%clk 0:00:02]} 0-1


[Site "https://www.chess.com"]

[Event "Titled Tuesday Blitz February 07 Early 2023"]
[White "Lamaze, Simon"]
[Black "Gabrielian, Artur"]
[WhiteFideId "36069264"]
[BlackFideId "4131002"]
[WhiteElo "2363"]
[BlackElo "2452"]
[Result "0-1"]
[Round "04"]
[TimeControl "180+2"]
[Date "2023.02.07"]
[WhiteClock "0:00:18"]
[BlackClock "0:01:15"]

1. e4 {[%clk 0:03:00]}  c5 {[%clk 0:02:34]} 2. Nf3 {[%clk 0:03:00]}  d6 {[%clk 0:02:33]} 3. d4 {[%clk 0:03:00]}  cxd4 {[%clk 0:02:33]} 4. Nxd4 {[%clk 0:03:01]}  Nf6 {[%clk 0:02:33]} 5. Nc3 {[%clk 0:03:02]}  Nc6 {[%clk 0:02:32]} 6. Bg5 {[%clk 0:03:02]}  e6 {[%clk 0:02:31]} 7. Bb5 {[%clk 0:03:00]}  Bd7 {[%clk 0:02:30]} 8. Qd3 {[%clk 0:03:00]}  Be7 {[%clk 0:02:29]} 9. O-O-O {[%clk 0:03:00]}  h6 {[%clk 0:02:21]} 10. Bh4 {[%clk 0:02:29]}  a6 {[%clk 0:02:21]} 11. Bxc6 {[%clk 0:02:27]}  bxc6 {[%clk 0:02:21]} 12. Nb3 {[%clk 0:02:24]}  a5 {[%clk 0:02:10]} 13. a4 {[%clk 0:02:07]}  Rb8 {[%clk 0:02:05]} 14. Bxf6 {[%clk 0:02:06]}  gxf6 {[%clk 0:02:04]} 15. h4 {[%clk 0:02:04]}  Rg8 {[%clk 0:02:03]} 16. h5 {[%clk 0:01:51]}  Qb6 {[%clk 0:02:01]} 17. Rdf1 {[%clk 0:00:53]}  Rxg2 {[%clk 0:01:57]} 18. Rhg1 {[%clk 0:00:53]}  Rg5 {[%clk 0:01:48]} 19. Rxg5 {[%clk 0:00:38]}  fxg5 {[%clk 0:01:47]} 20. e5 {[%clk 0:00:32]}  d5 {[%clk 0:01:40]} 21. f4 {[%clk 0:00:32]}  g4 {[%clk 0:01:40]} 22. Qh7 {[%clk 0:00:25]}  c5 {[%clk 0:01:35]} 23. Qg8+ {[%clk 0:00:21]}  Bf8 {[%clk 0:01:35]} 24. f5 {[%clk 0:00:21]}  c4 {[%clk 0:01:34]} 25. Nb5 {[%clk 0:00:12]}  Bxb5 {[%clk 0:01:25]} 26. axb5 {[%clk 0:00:12]}  cxb3 {[%clk 0:01:21]} 27. Qxg4 {[%clk 0:00:12]}  Qe3+ {[%clk 0:01:20]} 28. Kb1 {[%clk 0:00:12]}  bxc2+ {[%clk 0:01:20]} 29. Kxc2 {[%clk 0:00:11]}  Qe4+ {[%clk 0:01:20]} 30. Qxe4 {[%clk 0:00:10]}  dxe4 {[%clk 0:01:21]} 31. f6 {[%clk 0:00:11]}  Rxb5 {[%clk 0:01:20]} 32. Kc3 {[%clk 0:00:12]}  Rxe5 {[%clk 0:01:20]} 33. Kd4 {[%clk 0:00:13]}  Rxh5 {[%clk 0:01:19]} 34. Kxe4 {[%clk 0:00:13]}  Rf5 {[%clk 0:01:15]} 35. Rc1 {[%clk 0:00:11]}  Rxf6 {[%clk 0:01:15]} 36. Rc8+ {[%clk 0:00:12]}  Ke7 {[%clk 0:01:15]} 37. Rc7+ {[%clk 0:00:13]}  Kd6 {[%clk 0:01:16]} 38. Ra7 {[%clk 0:00:14]}  Rf5 {[%clk 0:01:15]} 39. Ra6+ {[%clk 0:00:14]}  Ke7 {[%clk 0:01:15]} 40. Ra7+ {[%clk 0:00:15]}  Kf6 {[%clk 0:01:15]} 41. Ra6 {[%clk 0:00:15]}  h5 {[%clk 0:01:15]} 42. Ke3 {[%clk 0:00:15]}  h4 {[%clk 0:01:15]} 43. Ke4 {[%clk 0:00:16]}  h3 {[%clk 0:01:15]} 44. Ra8 {[%clk 0:00:17]}  h2 {[%clk 0:01:15]} 45. Rxf8 {[%clk 0:00:18]} 0-1


[Site "https://www.chess.com"]